bitfinex/quotes_ETHUSD_20260216
["timestamp","ask_amount","ask_price","bid_price","bid_amount"]
[1771257229855,2.80978825,1960.4,1958.7,1.27630718]
[1771257229856,0.997,1960.2,1959.1,1.99761432]
[1771257230012,0.92,1960.4,1959.3,1.99761432]
[1771257230845,2.19525285,1960.4,1959.3,1.99761432]
[1771257231017,4.0850411,1960.4,1959.2,1.005]
[1771257231223,4.0850411,1960.4,1958.8,1.99761432]
[1771257231424,1.88978825,1960.3,1959.0,1.2761613]
[1771257231924,2.19525285,1960.4,1959.0,1.2761613]
[1771257231925,2.19525285,1960.4,1959.0,3.27377562]
[1771257233144,1.88978825,1960.3,1959.0,3.27377562]
[1771257233444,1.27538006,1960.2,1959.0,1.2761613]
[1771257233646,0.995,1960.1,1959.0,1.2761613]
[1771257234360,2.88478825,1960.1,1958.7,5.10520547]
[1771257236252,3.16529845,1960.0,1958.7,5.10520547]
[1771257236759,1.88978825,1959.9,1958.6,1.003]
[1771257236921,1.88978825,1959.9,1958.6,2.27941413]
[1771257238040,1.88978825,1959.9,1958.6,4.27702845]
[1771257238322,1.2755102,1960.0,1958.7,1.99761432]
[1771257240251,1.2755102,1960.0,1958.8,1.2762916]
[1771257240453,1.88978825,1959.9,1958.9,1.004]
[1771257241863,2.27049691,1960.1,1958.9,1.004]
[1771257242034,0.001,1960.3,1959.1,1.99761432]
[1771257242386,0.001,1960.3,1959.4,1.27590078]
[1771257242540,0.001,1960.3,1959.6,1.99761432]
[1771257242933,0.996,1960.9,1959.7,1.99761432]
[1771257243174,0.996,1960.9,1959.5,1.005]
[1771257243344,0.996,1960.9,1959.6,1.005]
[1771257243345,2.88578825,1960.9,1959.6,1.005]
[1771257243540,1.27490182,1961.0,1959.6,3.00261432]
[1771257243737,0.996,1960.9,1959.6,3.00261432]
[1771257244045,0.996,1960.9,1959.7,1.99761432]
[1771257244381,1.2749898,1960.8,1959.8,1.27564037]
[1771257244574,2.27096207,1960.9,1959.8,1.27564037]
[1771257245650,1.27496207,1960.9,1959.8,1.27564037]
[1771257246838,2.19384087,1961.1,1959.9,1.99761432]
[1771257247033,2.19384087,1961.1,1960.0,1.006]
[1771257247464,2.19379695,1961.1,1960.0,1.006]
[1771257247773,0.919,1961.1,1960.0,3.00361432]
[1771257248067,1.27464685,1961.4,1960.1,2.91661432]
[1771257248268,2.27164685,1961.4,1960.1,2.91661432]
[1771257248835,2.27164685,1961.4,1960.2,1.27538006]
[1771257249064,2.27164685,1961.4,1960.2,3.27299438]
[1771257249270,2.27164685,1961.4,1960.2,1.27538006]
[1771257249566,1.27440485,1961.7,1960.3,1.99761432]
[1771257249868,0.998,1961.6,1960.4,1.007]
[1771257250836,1.27453479,1961.5,1960.5,1.2751849]
[1771257251545,1.88978825,1961.4,1960.1,3.201403]
[1771257252151,1.88978825,1961.4,1960.0,1.007]
[1771257252673,1.88978825,1961.4,1959.1,5.10423116]
[1771257252856,1.88978825,1961.4,1959.2,3.27364535]
[1771257252857,1.88978825,1960.7,1959.2,3.27364535]
[1771257253060,1.88978825,1960.5,1959.2,3.27364535]
[1771257253368,0.999,1960.4,1959.2,1.27603103]
[1771257253581,0.999,1960.4,1959.4,1.99488346]
[1771257253773,0.999,1960.4,1959.5,1.007]
[1771257253976,0.999,1960.4,1959.9,0.0011]
[1771257254375,0.998,1960.4,1959.9,0.0011]
[1771257254750,0.919,1960.8,1959.9,0.0011]
[1771257254963,3.19199365,1960.8,1959.9,0.0011]
[1771257255181,1.917,1960.8,1959.9,1.0081]
[1771257255555,1.917,1960.8,1959.9,2.92410343]
[1771257255556,0.919,1960.8,1959.9,2.92410343]
[1771257256378,2.19400047,1960.8,1959.9,1.0081]
[1771257256584,0.919,1960.8,1959.9,2.92410343]
[1771257256773,0.998,1961.1,1960.1,1.91600343]
[1771257256973,0.998,1961.1,1960.2,1.27538006]
[1771257256974,2.27279652,1961.1,1960.2,1.27538006]
[1771257257486,2.27279652,1961.1,1960.0,5.10189273]
[1771257257660,2.27279652,1961.1,1959.9,2.28364729]
[1771257257661,4.07596885,1961.1,1959.9,2.28364729]
[1771257259087,1.80317233,1961.0,1959.9,2.28365682]
[1771257259814,2.27279652,1961.1,1959.9,2.28365682]
[1771257260602,4.07596885,1961.1,1959.9,2.28365682]
[1771257260763,1.80317233,1961.0,1959.9,2.28365682]
[1771257261056,3.0780971,1960.9,1959.9,2.28365682]
[1771257261258,3.0780971,1960.9,1959.9,1.0081]
[1771257261459,3.0780971,1960.9,1959.9,2.28366706]
[1771257261662,1.27492477,1960.9,1959.9,2.28366706]
[1771257261958,1.0,1960.8,1959.9,2.28366706]
[1771257263274,1.27499078,1960.8,1959.9,2.28366706]
[1771257263464,2.2749294,1960.9,1959.9,4.19967049]
[1771257263870,2.2749294,1960.9,1959.9,2.28366706]
[1771257264992,4.07810173,1960.9,1959.9,2.28366995]
[1771257265363,2.2749294,1960.9,1959.9,2.28366995]
[1771257265797,1.002,1960.8,1959.9,2.28366995]
[1771257267171,2.2770516,1960.8,1959.9,2.28366995]
[1771257267560,2.2770516,1960.8,1960.0,0.0011]
[1771257269682,1.002,1960.7,1960.0,0.0011]
[1771257271412,1.27511986,1960.6,1960.0,0.0011]
[1771257271775,3.07829219,1960.6,1960.0,0.0011]
[1771257274807,1.80317233,1960.5,1959.2,1.008]
[1771257275003,1.27511986,1960.6,1959.2,1.008]
[1771257275004,1.80317233,1960.3,1959.2,1.008]
[1771257275370,1.80317233,1960.2,1958.9,6.11281046]
[1771257275798,1.27544513,1960.1,1958.9,6.11281046]
[1771257275967,1.006,1960.0,1958.9,6.11281046]
[1771257276178,1.006,1959.9,1958.9,7.98411412]
[1771257276475,1.006,1960.0,1959.1,1.87130366]
[1771257277207,1.006,1960.1,1959.1,1.87130366]
[1771257277799,1.006,1960.1,1959.2,1.27603103]
[1771257277998,1.27542426,1960.2,1959.2,1.27603103]
[1771257277999,1.27542426,1960.2,1959.3,1.009]
[1771257279888,1.006,1960.4,1959.4,3.12712704]
[1771257280090,2.28129751,1960.4,1959.4,3.12712704]
[1771257280292,2.28029751,1960.4,1959.4,3.12712704]
[1771257280492,0.001,1960.0,1959.4,3.12712704]
[1771257280893,0.001,1960.0,1959.4,1.27590078]
[1771257282615,0.001,1960.0,1959.4,3.11721501]
[1771257283414,0.001,1960.0,1959.5,1.83638914]
[1771257284388,0.001,1960.0,1959.6,1.27577056]
[1771257284588,0.001,1960.0,1959.7,1.013]
[1771257285416,2.27919031,1960.5,1959.7,1.013]
[1771257285615,1.004,1960.5,1959.7,1.013]
[1771257285796,1.27518674,1960.5,1959.7,1.013]
[1771257286713,1.27518674,1960.5,1959.8,1.27564037]
[1771257287023,1.27518674,1960.5,1959.7,2.28870399]
[1771257287391,1.2750776,1960.7,1959.7,2.28870399]
[1771257287606,1.003,1960.8,1959.8,1.77918955]
[1771257288990,1.003,1960.8,1959.9,1.27557528]
[1771257288991,1.27505482,1960.7,1959.9,1.27557528]
[1771257289719,1.27505482,1960.7,1960.0,1.77918955]
[1771257290024,10.93016803,1961.4,1960.2,1.77918955]
[1771257290025,2.27866476,1961.3,1960.2,1.77918955]
[1771257290410,2.27866476,1961.3,1959.9,1.27557528]
[1771257290411,1.81614367,1961.2,1959.9,4.07076483]
[1771257290720,1.81614367,1961.2,1959.9,2.29157528]
[1771257290933,1.81614367,1961.2,1959.9,1.016]
[1771257291117,1.81614367,1961.0,1959.9,2.29156701]
[1771257291326,2.82114367,1960.9,1959.9,2.29156701]
[1771257291502,1.81614367,1960.8,1959.9,1.27556701]
[1771257293533,1.27505482,1960.7,1959.9,1.27556701]
[1771257294034,2.27905482,1960.7,1959.9,1.27556701]
[1771257294330,2.27905482,1960.7,1959.8,2.29158986]
[1771257294702,2.27905482,1960.7,1959.8,2.14920517]
[1771257294902,4.09519849,1960.7,1959.8,2.14920517]
[1771257296205,1.81614367,1960.6,1959.5,1.77918955]
[1771257296406,1.81614367,1960.6,1959.5,1.27583567]
[1771257296721,1.81614367,1960.6,1959.6,1.77651382]
[1771257296926,2.27905482,1960.7,1959.6,1.77651382]
[1771257297111,4.09519849,1960.7,1959.6,1.77651382]
[1771257299237,4.09519849,1960.7,1959.7,2.29170546]
[1771257300248,1.81614367,1960.6,1959.7,2.29170546]
[1771257300615,0.001,1960.9,1960.0,1.7579814]
[1771257300814,0.001,1960.9,1960.2,1.75338848]
[1771257301129,0.001,1960.9,1960.4,1.75338848]
[1771257301312,0.001,1960.9,1960.5,2.77038848]
[1771257304125,0.001,1960.9,1960.6,1.27511986]
[1771257304329,1.81614367,1961.7,1960.6,1.27511986]
[1771257304330,1.27738389,1961.8,1960.7,1.73971764]
[1771257304527,0.003,1961.8,1960.9,1.73971764]
[1771257304721,0.003,1961.8,1961.0,2.75771764]
[1771257305645,0.003,1961.8,1961.1,1.73519877]
[1771257306321,0.003,1961.8,1961.1,5.09891902]
[1771257307115,0.003,1961.8,1961.1,1.27479475]
[1771257307847,0.003,1961.8,1961.2,1.72174468]
[1771257308218,0.003,1961.8,1961.1,1.27479475]
[1771257308819,0.003,1961.8,1961.1,2.99207436]
[1771257309019,0.003,1961.8,1961.2,1.71727961]
[1771257309244,2.27895356,1962.4,1961.4,1.71727961]
[1771257309442,2.27895356,1962.4,1961.5,1.019]
[1771257309885,1.005,1962.4,1961.5,1.019]
[1771257310060,2.27895534,1962.4,1961.5,2.73183076]
[1771257310351,2.27895641,1962.4,1961.5,2.73183076]
[1771257310732,2.27895641,1962.4,1961.5,1.019]
[1771257310937,2.27895641,1962.4,1961.6,1.27446982]
[1771257311854,1.005,1962.4,1961.6,1.27446982]
[1771257312038,2.27895153,1962.4,1961.6,1.27446982]
[1771257312438,1.27395153,1962.4,1961.6,1.27446982]
[1771257312846,3.0900952,1962.4,1961.6,1.27446982]
[1771257313241,1.27395153,1962.4,1961.6,1.27446982]
[1771257313458,1.27382044,1962.6,1961.6,2.9741442]
[1771257314062,2.9292985,1962.6,1961.6,1.27446982]
[1771257314565,1.65547806,1962.5,1961.6,1.27446982]
[1771257315560,2.92942832,1962.4,1961.5,1.019]
[1771257315960,1.27395026,1962.4,1961.5,2.70491659]
[1771257316143,5.09544243,1962.6,1961.5,2.70491659]
[1771257318238,5.09544243,1962.6,1961.6,1.27446982]
[1771257318448,1.65647806,1962.5,1961.6,1.27446982]
[1771257318662,0.001,1962.5,1961.6,1.27446982]
[1771257319353,1.65647806,1962.5,1961.6,1.27446982]
[1771257319735,1.65647806,1962.5,1961.5,1.019]
[1771257320057,1.65647806,1962.5,1961.5,2.29353087]
[1771257320236,1.65547806,1962.3,1961.5,1.019]
[1771257320436,1.005,1962.2,1961.5,1.019]
[1771257320833,1.27395026,1962.4,1961.5,2.68340316]
[1771257321875,1.27395026,1962.4,1961.5,1.66440316]
[1771257322167,1.65547806,1962.3,1961.4,30.0]
[1771257322406,1.27408011,1962.2,1961.5,1.27453479]
[1771257323150,5.09596652,1962.4,1961.5,1.27453479]
[1771257324341,5.09596652,1962.4,1961.3,5.0984664]
[1771257324342,1.65547806,1962.3,1961.3,1.27466476]
[1771257324549,1.27395026,1962.4,1961.4,31.65167269]
[1771257324766,1.27395026,1962.4,1961.4,1.65167269]
[1771257325852,2.27988535,1962.5,1961.4,1.65167269]
[1771257326353,1.27488535,1962.5,1961.6,1.64325751]
[1771257326553,6.10142552,1962.6,1961.7,1.022]
[1771257326764,1.27388535,1962.5,1961.7,1.022]
[1771257327279,1.65547806,1962.1,1961.0,0.0011]
[1771257327479,1.65547806,1961.9,1961.0,0.0011]
[1771257327983,0.918,1962.1,1961.0,1.27595771]
[1771257328150,0.918,1962.1,1961.1,1.022]
[1771257328358,1.924,1962.1,1961.1,1.022]
[1771257328566,1.924,1962.1,1961.2,1.27472975]
[1771257328567,3.19815445,1962.1,1961.2,1.27472975]
[1771257328970,3.19815445,1962.1,1961.1,2.29674187]
[1771257329174,4.85363251,1962.1,1961.1,1.27474187]
[1771257329490,4.85363251,1962.1,1961.1,2.29674187]
[1771257329988,1.65547806,1962.0,1961.1,1.022]
[1771257330290,1.65547806,1962.0,1961.1,2.29678312]
[1771257330492,1.27427493,1961.9,1961.1,1.022]
[1771257330675,2.92975299,1961.9,1961.1,1.022]
[1771257330990,1.65547806,1961.8,1961.0,0.0011]
[1771257331192,2.66247806,1961.7,1961.0,0.0011]
[1771257331388,2.66247806,1961.7,1961.3,0.0011]
[1771257332292,1.007,1961.7,1961.3,0.0011]
[1771257332696,2.28146582,1961.7,1961.3,0.0011]
[1771257333697,3.93694388,1961.7,1961.3,0.0011]
[1771257334495,1.65547806,1961.6,1960.1,5.10126001]
[1771257334698,2.93001285,1961.5,1960.1,7.7618658]
[1771257334902,1.65547806,1961.4,1960.1,7.7618658]
[1771257335195,5.0975307,1961.8,1960.1,7.7618658]
[1771257335196,6.75271291,1961.9,1960.5,1.63546227]
[1771257335496,6.75271291,1961.9,1960.5,2.65646227]
[1771257335497,1.65547806,1961.6,1960.5,2.65646227]
[1771257335696,1.01,1961.7,1960.5,2.65646227]
[1771257335879,1.65547806,1961.6,1960.5,2.65646227]
[1771257336076,1.65547806,1961.6,1960.2,1.63141931]
[1771257336766,2.93001285,1961.5,1960.3,1.275315]
[1771257336966,2.93001285,1961.5,1960.3,2.90261141]
[1771257338889,1.65547806,1961.4,1960.3,1.275315]
[1771257339094,1.011,1961.3,1960.3,1.275315]
[1771257339277,2.66647806,1961.3,1960.3,1.275315]
[1771257339477,2.66647806,1961.3,1960.4,1.022]
[1771257339796,1.011,1961.3,1960.4,2.64108987]
[1771257340996,1.011,1961.3,1960.5,1.2751849]
[1771257341466,5.0982715,1961.5,1960.5,2.88611742]
[1771257341669,5.0982715,1961.5,1960.5,1.2751849]
[1771257341900,6.75374956,1961.5,1960.5,1.2751849]
[1771257342290,1.011,1961.4,1960.5,1.2751849]
[1771257342684,1.011,1961.4,1960.5,2.2981849]
[1771257343001,2.28565333,1961.4,1960.5,3.90101725]
[1771257344010,1.011,1961.4,1960.6,1.59832881]
[1771257344380,5.09743553,1961.8,1960.6,1.59832881]
[1771257344703,0.001,1961.5,1960.6,1.59832881]
[1771257344877,0.001,1961.5,1960.7,1.27505482]
[1771257345078,0.001,1961.5,1960.7,2.86936856]
[1771257346806,0.001,1961.5,1960.8,1.59031055]
[1771257346988,0.001,1961.5,1961.0,1.58632589]
[1771257348609,0.001,1961.5,1960.6,1.27511986]
[1771257348819,1.56289813,1961.4,1960.3,1.27636049]
[1771257349120,1.56289813,1961.2,1960.3,1.0261]
[1771257349479,1.27466476,1961.3,1960.3,1.0261]
[1771257349681,1.27466476,1961.3,1960.3,2.60403345]
[1771257351116,1.27466476,1961.3,1960.4,1.27524994]
[1771257353618,6.10765905,1961.4,1960.5,1.56220671]
[1771257353619,1.009,1961.4,1960.5,1.56220671]
[1771257354021,0.001,1961.5,1960.6,1.55830493]
[1771257354186,0.001,1961.5,1960.8,1.55830493]
[1771257355485,0.001,1961.5,1960.9,2.82933706]
[1771257356512,0.001,1961.5,1960.9,1.27492477]
[1771257357592,0.001,1961.5,1960.9,1.54666589]
[1771257358412,0.001,1961.4,1960.9,1.54666589]
[1771257360318,0.001,1961.4,1960.8,5.09969911]
[1771257360621,0.001,1961.4,1960.8,6.63483255]
[1771257361295,0.001,1961.4,1960.9,1.53131158]
[1771257361701,0.001,1961.4,1961.0,1.029]
[1771257362108,0.001,1961.4,1960.8,5.09969911]
[1771257362307,0.001,1961.4,1960.9,1.029]
[1771257362510,0.001,1961.4,1961.0,1.27485976]
[1771257362710,0.001,1961.4,1960.9,6.12843906]
[1771257362711,0.001,1961.4,1960.9,2.3038724]
[1771257362911,1.56389813,1961.4,1960.5,1.27623177]
[1771257363110,1.56389813,1961.4,1960.7,1.03]
[1771257363643,1.56389813,1961.4,1960.5,1.27628104]
[1771257363644,1.56389813,1961.4,1960.5,0.0011]
[1771257363915,1.56289813,1961.2,1960.5,0.0011]
[1771257364118,1.56289813,1961.2,1960.3,0.0011]
[1771257364421,1.56289813,1961.0,1960.3,0.0011]
[1771257364621,1.56289813,1960.9,1960.3,0.0011]
[1771257365411,1.56289813,1960.8,1960.0,0.0011]
[1771257366417,1.27505482,1960.7,1960.0,0.0011]
[1771257366607,1.56289813,1960.6,1960.0,0.0011]
[1771257367524,1.56289813,1960.4,1959.7,0.0011]
[1771257368512,1.275315,1960.3,1959.7,0.0011]
[1771257368928,1.56289813,1960.2,1959.7,0.0011]
[1771257369230,1.275315,1960.3,1959.7,0.0011]
[1771257369608,0.47569376,1960.4,1959.9,1.50244034]
[1771257369807,0.47569376,1960.4,1960.0,1.027]
[1771257369995,6.66238374,1961.0,1960.0,1.027]
[1771257370200,2.56989813,1960.9,1960.0,1.027]
[1771257370711,1.2749898,1960.8,1960.1,1.27544513]
[1771257370911,1.2749898,1960.8,1960.0,2.30245787]
[1771257371439,1.2749898,1960.8,1960.0,2.30355787]
[1771257371728,2.83788793,1960.8,1960.0,0.0011]
[1771257371915,1.56289813,1960.7,1960.0,0.0011]
[1771257373232,1.27511986,1960.6,1960.0,0.0011]
[1771257373436,1.27593553,1960.9,1960.0,1.51614713]
[1771257373608,0.001,1960.9,1960.1,1.51504713]
[1771257375223,0.001,1960.9,1960.2,1.27538006]
[1771257379120,1.55490016,1960.9,1960.1,1.27540304]
[1771257380621,0.001,1960.9,1960.0,5.10304906]
[1771257380818,1.55490016,1960.9,1960.0,5.10304906]
[1771257381017,1.55490016,1960.9,1960.0,0.0011]
[1771257382622,1.55390016,1960.7,1960.0,0.0011]
[1771257382821,1.55390016,1960.5,1960.0,0.0011]
[1771257383021,1.55390016,1960.5,1959.9,0.0011]
[1771257383248,1.55390016,1960.5,1959.7,0.0011]
[1771257383546,1.55390016,1960.4,1959.7,0.0011]
[1771257384034,1.55390016,1960.4,1960.0,0.0011]
[1771257384231,1.55390016,1960.4,1959.7,0.0011]
[1771257384547,1.55390016,1960.4,1959.9,0.0011]
[1771257384548,1.55390016,1960.2,1959.9,0.0011]
[1771257384751,1.55390016,1960.0,1959.1,1.2760938]
[1771257384952,1.55390016,1960.0,1959.0,1.27721159]
[1771257385625,1.55390016,1960.0,1959.0,0.0011]
[1771257386421,1.55390016,1959.8,1959.0,0.0011]
[1771257387140,1.27570546,1959.7,1959.0,0.0011]
[1771257387838,2.82960562,1959.7,1959.0,0.0011]
[1771257388025,1.27570546,1959.7,1959.0,0.0011]
[1771257388556,1.55390016,1959.6,1959.0,0.0011]
[1771257388779,1.27570546,1959.7,1958.8,0.0011]
[1771257389060,14.85598208,1959.8,1958.8,1.45677538]
[1771257389061,1.006,1959.8,1958.8,1.45677538]
[1771257389253,2.28167553,1959.8,1958.8,0.0011]
[1771257390557,3.83557569,1959.8,1958.8,0.0011]
[1771257392162,1.55390016,1959.7,1958.8,0.0011]
[1771257392531,2.28167553,1959.8,1958.8,0.0011]
[1771257392737,2.28167553,1959.8,1958.8,1.44601932]
[1771257392937,2.28167553,1959.8,1958.8,0.0011]
[1771257394864,3.83557569,1959.8,1958.8,0.0011]
[1771257396651,3.83557569,1959.8,1958.9,0.0011]
[1771257399869,1.55390016,1959.7,1958.8,0.0011]
[1771257400069,12.03484778,1959.8,1958.8,0.0011]
[1771257400070,1.55390016,1959.4,1958.8,0.0011]
[1771257400371,1.55390016,1959.2,1958.6,0.0011]
[1771257400559,9.02479489,1959.5,1958.6,1.27750391]
[1771257400560,1.55390016,1959.5,1958.6,1.27750391]
[1771257400759,1.014,1959.4,1958.6,2.69053068]
[1771257401058,1.014,1959.5,1958.6,2.69053068]
[1771257401969,2.82980094,1959.4,1958.6,0.0011]
[1771257402149,1.55390016,1959.3,1958.6,0.0011]
[1771257404160,2.89189823,1959.2,1958.6,0.0011]
[1771257404354,1.015,1959.1,1958.6,0.0011]
[1771257404796,2.6308672,1959.1,1958.6,0.0011]
[1771257405863,1.015,1959.1,1958.6,0.0011]
[1771257406205,1.27622645,1958.9,1958.5,0.0011]
[1771257406488,2.89209365,1958.9,1957.9,1.27687828]
[1771257406661,2.89209365,1958.9,1957.8,3.69933655]
[1771257407061,5.10490581,1959.0,1957.9,1.39199649]
[1771257407062,1.27620916,1959.0,1957.9,1.39199649]
[1771257407264,1.017,1958.8,1957.9,1.39199649]
[1771257407699,5.10372467,1959.4,1957.9,1.39199649]
[1771257407895,1.017,1959.2,1957.9,1.39199649]
[1771257408099,1.017,1959.2,1958.0,1.27681307]
[1771257408273,1.017,1959.2,1958.1,1.38837685]
[1771257408889,1.017,1959.2,1958.3,1.38837685]
[1771257409086,5.10340505,1959.5,1958.4,1.38494553]
[1771257409087,1.27586801,1959.5,1958.4,1.38494553]
[1771257409398,2.29283932,1959.5,1958.4,1.38494553]
[1771257409702,2.29283843,1959.5,1958.4,1.38494553]
[1771257409862,1.017,1959.5,1958.4,1.38494553]
[1771257410378,1.017,1959.5,1958.6,1.38151855]
[1771257412664,0.001,1959.7,1958.8,1.37468895]
[1771257412867,0.001,1959.7,1958.7,1.27635676]
[1771257412868,0.001,1959.7,1959.0,1.3712884]
[1771257414704,0.001,1959.7,1959.1,1.27609616]
[1771257414907,0.001,1959.7,1959.2,1.36452303]
[1771257417111,0.001,1959.7,1959.0,1.2761613]
[1771257419791,0.001,1959.7,1959.1,1.35110651]
[1771257420674,0.001,1959.7,1959.0,1.2761613]
[1771257420880,0.001,1959.7,1958.6,1.27642193]
[1771257420881,1.54915799,1959.6,1958.6,1.27642193]
[1771257421275,1.54915799,1959.6,1958.6,1.27752193]
[1771257421493,1.55015799,1959.6,1958.6,1.27752193]
[1771257421810,1.2768212,1959.6,1958.7,1.34443953]
[1771257423019,2.82597919,1959.6,1958.6,1.27752193]
[1771257424100,2.82597919,1959.6,1958.6,2.61202934]
[1771257424292,1.2768212,1959.6,1958.7,1.33450741]
[1771257425386,0.001,1959.6,1958.7,1.33450741]
[1771257426209,0.001,1959.6,1958.8,2.60421706]
[1771257426502,1.55015799,1959.6,1958.8,1.2762916]
[1771257428175,1.27583567,1959.5,1958.7,5.10516642]
[1771257428389,2.82597575,1959.6,1958.7,5.10516642]
[1771257428990,1.27681776,1959.6,1958.7,5.10516642]
[1771257429202,1.27681776,1959.6,1958.6,2.30745676]
[1771257429203,1.54915799,1959.3,1958.6,0.0011]
[1771257429507,2.56115799,1959.2,1958.6,0.0011]
[1771257429999,1.012,1959.2,1958.6,1.27751757]
[1771257430309,1.012,1959.2,1958.6,0.0011]
[1771257430477,1.27593891,1959.4,1958.6,0.0011]
[1771257431803,1.27593891,1959.4,1958.6,1.30948731]
[1771257431982,2.28788469,1959.5,1958.6,1.30948731]
[1771257432182,2.28784208,1959.5,1958.6,1.30948731]
[1771257432388,2.28784208,1959.5,1958.7,1.27635676]
[1771257433194,3.83700007,1959.5,1958.7,1.27635676]
[1771257433598,3.83800007,1959.5,1958.7,1.27635676]
[1771257434476,3.83800007,1959.5,1958.6,5.10652706]
[1771257435080,1.27684208,1959.5,1958.6,6.40186647]
[1771257435284,0.001,1959.5,1958.7,1.29533941]
[1771257436591,1.27684779,1959.5,1958.8,1.2762916]
[1771257437308,1.27684779,1959.5,1958.6,1.27749894]
[1771257437309,1.43566371,1959.4,1958.6,1.27749894]
[1771257439086,1.2759659,1959.3,1958.6,0.0011]
[1771257439313,1.43566371,1959.2,1958.6,0.0011]
[1771257439513,1.012,1959.1,1958.6,0.0011]
[1771257439716,2.44766371,1959.1,1958.6,0.0011]
[1771257440009,1.012,1959.1,1958.6,0.0011]
[1771257440225,1.43566371,1959.0,1958.6,0.0011]
[1771257440830,1.43566371,1959.0,1958.3,1.27768868]
[1771257440831,1.43566371,1959.0,1958.3,0.0011]
[1771257440978,1.27622645,1958.9,1958.3,0.0011]
[1771257441179,1.013,1958.8,1958.3,0.0011]
[1771257441901,1.43566371,1958.7,1958.3,0.0011]
[1771257442086,1.43566371,1958.7,1958.0,0.0011]
[1771257443289,1.27622645,1958.9,1958.0,0.0011]
[1771257443488,6.54054858,1959.0,1958.0,0.0011]
[1771257443489,2.28920816,1959.0,1958.0,1.26306686]
[1771257443810,1.43566371,1958.9,1958.0,0.0011]
[1771257445312,1.43566371,1958.9,1957.9,0.0011]
[1771257445313,1.2764871,1958.5,1957.9,0.0011]
[1771257445513,1.43566371,1958.3,1957.7,0.0011]
[1771257446514,1.43566371,1958.3,1958.1,0.0011]
[1771257446806,1.43566371,1958.3,1957.7,0.0011]
[1771257447404,1.27668266,1958.2,1957.7,0.0011]
[1771257449311,1.27642193,1958.6,1957.7,1.23888622]
[1771257449505,1.017,1958.6,1957.8,2.51472972]
[1771257449709,1.017,1958.6,1957.9,1.23778622]
[1771257449885,1.017,1958.6,1957.8,1.2769435]
[1771257450215,1.43566371,1958.5,1957.7,0.0011]
[1771257450604,1.017,1958.5,1957.7,1.27807093]
[1771257450806,1.017,1958.5,1957.8,1.23380086]
[1771257450988,1.017,1958.5,1957.7,1.27807093]
[1771257451390,1.27655228,1958.4,1957.7,0.0011]
[1771257452305,2.29353877,1958.5,1957.7,1.22697828]
[1771257452502,1.017,1958.5,1957.7,1.22697828]
[1771257452814,1.27642289,1958.6,1957.9,1.22587828]
[1771257454218,0.001,1958.7,1958.0,2.49484663]
[1771257454800,0.001,1958.7,1958.1,1.21803356]
[1771257456720,0.001,1958.7,1958.2,1.27668266]
[1771257457417,0.001,1958.7,1957.9,5.10739109]
[1771257457806,0.001,1958.7,1958.2,0.0011]
[1771257458599,1.43666371,1958.7,1958.2,0.0011]
[1771257459513,1.27642193,1958.6,1958.2,0.0011]
[1771257459710,0.001,1958.7,1958.2,0.0011]
[1771257460013,1.27736099,1958.7,1958.2,0.0011]
[1771257460856,1.43566371,1958.6,1958.2,0.0011]
[1771257462052,1.43566371,1958.4,1957.7,0.0011]
[1771257462231,1.2764871,1958.5,1957.7,0.0011]
[1771257462232,2.45466371,1958.3,1957.7,0.0011]
[1771257462435,1.019,1958.3,1957.7,0.0011]
[1771257462739,1.43566371,1958.2,1957.7,0.0011]
[1771257464638,1.27674786,1958.1,1957.7,0.0011]
[1771257465136,1.27642193,1958.6,1957.7,1.21433502]
[1771257465324,2.29642193,1958.6,1957.7,1.21433502]
[1771257465640,3.73748868,1958.6,1957.7,0.0011]
[1771257465819,1.44106675,1958.5,1957.7,0.0011]
[1771257466911,2.71761903,1958.4,1957.7,0.0011]
[1771257467441,1.44106675,1958.3,1957.7,0.0011]
[1771257467630,1.021,1958.2,1957.7,0.0011]
[1771257469636,1.27674786,1958.1,1957.7,0.0011]
[1771257469842,1.27674786,1958.1,1957.8,0.0011]
[1771257471947,1.27652452,1958.5,1957.8,1.18724531]
[1771257472162,0.001,1958.6,1957.8,1.18724531]
[1771257472450,1.27736029,1958.7,1957.9,1.18614531]
[1771257472631,0.001,1958.6,1957.8,0.0011]
[1771257473046,0.001,1958.5,1957.8,0.0011]
[1771257473236,0.001,1958.6,1957.8,0.0011]
[1771257473656,1.026,1958.5,1957.8,0.0011]
[1771257474046,1.27755228,1958.4,1957.8,0.0011]
[1771257474441,0.001,1958.3,1957.8,0.0011]
[1771257475635,2.30153245,1958.5,1957.8,0.0011]
[1771257475937,0.001,1958.4,1957.8,1.17624499]
[1771257476132,0.001,1958.4,1957.9,1.27687828]
[1771257476726,0.001,1958.3,1957.8,0.0011]
[1771257477231,0.001,1958.2,1957.8,0.0011]
[1771257477446,0.001,1958.4,1957.8,0.0011]
[1771257477644,1.47046735,1958.4,1957.8,0.0011]
[1771257478754,1.27761747,1958.3,1957.8,0.0011]
[1771257478956,0.001,1958.2,1957.8,0.0011]
[1771257479127,0.001,1958.3,1957.8,0.0011]
[1771257481197,0.92,1958.6,1957.8,1.15454676]
[1771257481340,0.921,1958.6,1957.8,1.15454676]
[1771257481784,2.19742336,1958.6,1957.8,1.15454676]
[1771257481943,2.19642336,1958.6,1957.8,1.15454676]
[1771257482277,2.19642336,1958.6,1957.9,1.15097591]
[1771257482439,0.001,1958.5,1957.9,0.0011]
[1771257482636,0.002,1958.5,1957.9,0.0011]
[1771257483091,0.001,1958.4,1957.9,0.0011]
[1771257483492,0.001,1958.3,1957.9,0.0011]
[1771257484086,0.001,1958.2,1957.8,0.0011]
[1771257484290,0.001,1958.3,1957.8,0.0011]
[1771257485286,1.27761747,1958.3,1957.8,0.0011]
[1771257485489,2.74708482,1958.3,1957.8,0.0011]
[1771257485703,0.001,1958.2,1957.8,0.0011]
[1771257486174,0.001,1958.5,1957.8,1.13686976]
[1771257486572,0.001,1958.7,1958.0,1.13576976]
[1771257487078,0.001,1958.7,1958.2,1.1322697]
[1771257487270,0.001,1958.7,1958.3,1.27661747]
[1771257487480,0.002,1958.7,1958.2,1.1322697]
[1771257487721,0.002,1958.7,1958.2,1.27667636]